fUSD/lending_fUSD_20250606
["ID","MTS","AMOUNT","RATE_DAILY","PERIOD"]
[364679068,1749197458938,-879.8,0.00030164,7]
[364679069,1749197458948,-500.0,0.00030164,7]
[364679070,1749197458958,-879.8,0.00030164,7]
[364679071,1749197458968,-419.20933824,0.00030164,7]
[364679072,1749197458977,-500.0,0.00030164,7]
[364679073,1749197458987,-879.8,0.00030164,7]
[364679074,1749197458996,-500.0,0.00030164,7]
[364679075,1749197459007,-879.8,0.00030164,7]
[364679076,1749197459016,-500.0,0.00030164,7]
[364679077,1749197459026,-879.8,0.00030164,7]
[364679078,1749197459035,-500.0,0.00030164,7]
[364679079,1749197459045,-879.8,0.00030164,7]
[364679080,1749197459054,-480.0,0.00030164,7]
[364679081,1749197459065,-879.8,0.00030164,7]
[364679082,1749197459075,-500.0,0.00030164,7]
[364679083,1749197459085,-480.0,0.00030164,7]
[364679084,1749197459095,-879.8,0.00030164,7]
[364679085,1749197459105,-500.0,0.00030164,7]
[364679086,1749197459115,-500.0,0.00030164,7]
[364679087,1749197459124,-879.8,0.00030164,7]
[364679088,1749197459134,-502.32635105,0.00030164,7]
[364679089,1749197459143,-879.8,0.00030164,7]
[364679090,1749197459152,-805.19,0.00030164,7]
[364679091,1749197459161,-879.8,0.00030164,7]
[364679092,1749197459171,-879.8,0.00030164,7]
[364679093,1749197459181,-879.8,0.00030164,7]
[364679094,1749197459190,-4366.75,0.00030164,7]
[364679095,1749197459206,-480.0,0.00030164,7]
[364679096,1749197459215,-500.0,0.00030173,5]
[364679097,1749197459225,-500.0,0.00030173,5]
[364679098,1749197459234,-506.74011738,0.00030173,5]
[364679099,1749197459244,-500.0,0.00030173,5]
[364679100,1749197459254,-500.61943238,0.00030173,5]
[364679101,1749197459263,-502.51453079,0.00030173,5]
[364679102,1749197459273,-302.57153467,0.00030173,5]
[364679103,1749197459282,-501.96261,0.00030173,5]
[364679104,1749197459293,-501.13072775,0.00030173,5]
[364679105,1749197459302,-508.02161837,0.00030173,5]
[364679106,1749197459311,-500.0,0.00030173,5]
[364679107,1749197459321,-500.0,0.00030173,5]
[364679108,1749197459330,-501.2147058,0.00030173,5]
[364679109,1749197459339,-501.57390108,0.00030173,5]
[364679110,1749197459350,-500.73269079,0.00030173,5]
[364679111,1749197459366,-504.06037281,0.00030173,5]
[364679112,1749197459375,-214.15,0.000302,2]
[364679113,1749197459384,-514.8,0.000302,2]
[364679114,1749197459394,-206.45,0.000302,2]
[364679115,1749197459405,-7315.55,0.000302,2]
[364679116,1749197459414,-1743.79,0.000302,2]
[364679117,1749197459423,-151.15276682,0.00030228,2]
[364679118,1749197459433,-469.09,0.00030235,2]
[364679119,1749197459443,-816.66,0.00030235,2]
[364679120,1749197459452,-151.168,0.0003028,2]
[364679121,1749197459462,-183.834,0.0003028,2]
[364679122,1749197459471,-150.859,0.0003028,2]
[364679123,1749197459481,-150.281,0.0003028,2]
[364679124,1749197459490,-240.448,0.0003028,2]
[364679125,1749197459499,-150.0,0.0003028,2]
[364679126,1749197459510,-156.819,0.0003028,2]
[364679127,1749197459519,-150.205,0.0003028,2]
[364679128,1749197459529,-1164.0,0.0003028,2]
[364679129,1749197459539,-944.0,0.0003028,2]
[364679130,1749197459548,-805.0,0.0003028,2]
[364679131,1749197459558,-636.0,0.0003028,2]
[364679132,1749197459568,-1274.0,0.0003028,2]
[364679133,1749197459577,-929.469,0.0003028,2]
[364679134,1749197459587,-559.122,0.0003028,2]
[364679135,1749197459597,-2099.361,0.0003028,2]
[364679136,1749197459607,-589.0,0.0003028,2]
[364679137,1749197459616,-1254.0,0.0003028,2]
[364679138,1749197459626,-152.0,0.00030299,7]
[364679139,1749197459635,-151.0,0.00030299,7]
[364679140,1749197459645,-151.0,0.00030299,7]
[364679141,1749197459658,-161.0,0.00030299,7]
[364679142,1749197459667,-151.0,0.00030299,7]
[364679143,1749197459677,-253.2642748,0.00030299,7]
[364679144,1749197459686,-151.0,0.00030299,7]
[364679145,1749197459696,-152.0,0.00030299,7]
[364679146,1749197459706,-151.0,0.00030299,7]
[364679147,1749197459716,-152.0,0.00030299,7]
[364679148,1749197459725,-151.0,0.00030299,7]
[364679149,1749197459735,-152.0,0.00030299,7]
[364679150,1749197459744,-151.0,0.00030299,7]
[364679151,1749197459754,-152.0,0.00030299,7]
[364679152,1749197459763,-292.95177789,0.00030299,7]
[364679153,1749197459773,-152.0,0.00030299,7]
[364679154,1749197459782,-152.0,0.00030299,7]
[364679155,1749197459791,-152.0,0.00030299,7]
[364679156,1749197459800,-215.0738,0.00030299,2]
[364679157,1749197459810,-156.587,0.00030299,2]
[364679158,1749197459819,-4500.0,0.000303,3]
[364679159,1749197459829,-214.15,0.000303,2]
[364679160,1749197459839,-214.15,0.000303,2]
[364679161,1749197459848,-514.8,0.000303,2]
[364679162,1749197459858,-514.8,0.000303,2]
[364679163,1749197459867,-206.45,0.000303,2]
[364679164,1749197459876,-206.45,0.000303,2]
[364679165,1749197459886,-7315.55,0.000303,2]
[364679166,1749197459895,-7315.55,0.000303,2]
[364679167,1749197459904,-1000.0,0.00030301,2]
[364679168,1749197459915,-1095.79,0.00030319,2]
[364679169,1749197459924,-500.0,0.00030319,7]
[364679170,1749197459934,-554.22,0.00030319,7]
[364679171,1749197459944,-28153.26637053,0.0003032,2]
[364679172,1749197459954,-10031.52,0.00030326,7]
[364679173,1749197459965,-151.0,0.00030327,7]
[364679174,1749197459976,-151.0,0.00030327,7]
[364679175,1749197459986,-500.0,0.00030327,7]
[364679176,1749197459996,-500.0,0.00030327,7]
[364679177,1749197460006,-500.0,0.00030327,7]
[364679178,1749197460017,-151.0,0.00030327,7]
[364679179,1749197460026,-151.0,0.00030327,7]
[364679180,1749197460036,-1145.33,0.00030327,7]
[364679181,1749197460047,-1145.33,0.00030327,7]
[364679182,1749197460058,-1145.33,0.00030327,7]
[364679183,1749197460068,-1145.33,0.00030327,7]
[364679184,1749197460078,-1145.51112612,0.00030327,7]
[364679185,1749197460089,-1095.79,0.00030327,2]
[364679186,1749197460099,-1095.79,0.00030327,2]
[364679187,1749197460110,-500.0,0.00030327,7]
[364679188,1749197460120,-500.0,0.00030327,7]
[364679189,1749197460130,-10031.52,0.00030327,7]
[364679190,1749197460139,-10031.52,0.00030327,7]
[364679191,1749197460149,-10031.52,0.00030327,7]
[364679192,1749197460159,-554.22,0.00030327,7]
[364679193,1749197460169,-554.22,0.00030327,7]
[364679194,1749197460180,-879.8,0.00030327,7]
[364679195,1749197460190,-879.8,0.00030327,7]
[364679196,1749197460200,-879.8,0.00030327,7]
[364679197,1749197460210,-879.8,0.00030327,7]
[364679198,1749197460221,-879.89967194,0.00030327,7]
[364679199,1749197460231,-870.34889421,0.00030328,2]
[364679200,1749197460243,-151.0,0.00030328,7]
[364679201,1749197460253,-480.0,0.00030328,7]
[364679202,1749197460264,-151.0,0.00030328,7]
[364679203,1749197460275,-151.0,0.00030328,7]
[364679204,1749197460286,-151.0,0.00030328,7]
[364679205,1749197460297,-151.0,0.00030328,7]
[364679206,1749197460307,-151.0,0.00030328,7]
[364679207,1749197460317,-151.0,0.00030328,7]
[364679208,1749197460327,-480.0,0.00030328,7]
[364679209,1749197460337,-151.0,0.00030328,7]
[364679210,1749197460347,-480.0,0.00030328,7]
[364679211,1749197460358,-3881.597127,0.00030328,7]
[364679212,1749197460368,-480.0,0.00030328,7]
[364679213,1749197460379,-480.0,0.00030328,7]
[364679214,1749197460388,-480.0,0.00030328,7]
[364679215,1749197460398,-480.0,0.00030328,7]
[364679216,1749197460409,-480.0,0.00030328,7]
[364679217,1749197460419,-151.0,0.00030328,7]
[364679218,1749197460429,-480.0,0.00030328,7]
[364679219,1749197460440,-480.0,0.00030328,7]
[364679220,1749197460451,-480.0,0.00030328,7]
[364679221,1749197460461,-480.0,0.00030328,7]
[364679222,1749197460471,-480.0,0.00030328,7]
[364679223,1749197460481,-480.0,0.00030328,7]
[364679224,1749197460491,-480.0,0.00030328,7]
[364679225,1749197460501,-480.0,0.00030328,7]
[364679226,1749197460511,-469.05084811,0.00030328,7]
[364679227,1749197460522,-480.0,0.00030328,7]
[364679228,1749197460532,-480.0,0.00030328,7]
[364679229,1749197460543,-151.0,0.00030328,7]
[364679230,1749197460552,-301.3664513,0.00030328,7]
[364679231,1749197460563,-480.0,0.00030328,7]
[364679232,1749197460573,-487.93579476,0.00030328,7]
[364679233,1749197460583,-480.0,0.00030328,7]
[364679234,1749197460593,-754.35,0.00030328,7]
[364679235,1749197460603,-487.24265669,0.00030328,7]
[364679236,1749197460614,-480.0,0.00030328,7]
[364679237,1749197460624,-490.76457102,0.00030328,7]
[364679238,1749197460634,-674.88,0.00030328,7]
[364679239,1749197460644,-480.0,0.00030328,7]
[364679240,1749197460654,-480.0,0.00030328,7]
[364679241,1749197460665,-485.82490159,0.00030328,7]
[364679242,1749197460675,-489.13619143,0.00030328,7]
[364679243,1749197460686,-480.0,0.00030328,7]
[364679244,1749197460696,-151.0,0.00030328,7]
[364679245,1749197460707,-151.0,0.00030328,7]
[364679246,1749197460717,-480.0,0.00030328,7]
[364679247,1749197460728,-151.0,0.00030328,7]
[364679248,1749197460738,-480.0,0.00030328,2]
[364679249,1749197460748,-734.068906,0.00030328,7]
[364679250,1749197460758,-480.0,0.00030328,7]
[364679251,1749197460767,-151.0,0.00030328,7]
[364679252,1749197460777,-480.0,0.00030328,7]
[364679253,1749197460786,-552.11576029,0.00030328,7]
[364679254,1749197460796,-734.068906,0.00030328,7]
[364679255,1749197460805,-480.0,0.00030328,7]
[364679256,1749197460815,-480.0,0.00030328,7]
[364679257,1749197460825,-151.0,0.00030328,7]
[364679258,1749197460835,-196.58725767,0.00030328,7]
[364679259,1749197461052,-480.0,0.00030328,7]
[364679260,1749197461063,-480.0,0.00030328,7]
[364679261,1749197461073,-480.0,0.00030328,7]
[364679262,1749197461084,-151.0,0.00030328,7]
[364679263,1749197461095,-1092.2,0.00030328,7]
[364679264,1749197461105,-185.7570599,0.00030328,7]
[364679265,1749197461115,-491.32245126,0.00030328,7]
[364679266,1749197461124,-480.0,0.00030328,7]
[364679267,1749197461134,-480.0,0.00030328,7]
[364679268,1749197461144,-315.12,0.00030328,7]
[364679269,1749197461153,-151.0,0.00030328,7]
[364679270,1749197461163,-480.0,0.00030328,7]
[364679271,1749197461173,-480.0,0.00030328,7]
[364679272,1749197461183,-151.0,0.00030328,7]
[364679273,1749197461194,-480.0,0.00030328,7]
[364679274,1749197461204,-480.0,0.00030328,7]
[364679275,1749197461215,-480.0,0.00030328,7]
[364679276,1749197461224,-320.14017578,0.00030328,7]
[364679277,1749197461235,-680.02,0.00030328,7]
[364679278,1749197461245,-480.0,0.00030328,7]
[364679279,1749197461254,-480.0,0.00030328,7]
[364679280,1749197461267,-480.0,0.00030328,7]
[364679281,1749197461277,-426.87521079,0.00030328,7]
[364679282,1749197461289,-480.0,0.00030328,7]
[364679283,1749197461299,-480.0,0.00030328,7]
[364679284,1749197461309,-151.0,0.00030328,7]
[364679285,1749197461319,-480.0,0.00030328,7]
[364679286,1749197461329,-480.0,0.00030328,7]
[364679287,1749197461339,-151.0,0.00030328,2]
[364679288,1749197461349,-151.0,0.00030328,2]
[364679289,1749197461360,-151.0,0.00030328,2]
[364679290,1749197461370,-151.0,0.00030328,2]
[364679291,1749197461379,-480.0,0.00030328,7]
[364679292,1749197461389,-480.0,0.00030328,7]
[364679293,1749197461399,-505.315916,0.00030328,7]
[364679294,1749197461409,-480.0,0.00030328,7]
[364679295,1749197461419,-505.315916,0.00030328,7]
[364679296,1749197461430,-480.0,0.00030328,7]
[364679297,1749197461440,-151.0,0.00030328,7]
[364679298,1749197461450,-151.0,0.00030328,7]
[364679299,1749197461460,-480.0,0.00030328,7]
[364679300,1749197461470,-151.0,0.00030328,7]
[364679301,1749197461480,-480.0,0.00030328,7]
[364679302,1749197461490,-480.0,0.00030328,7]
[364679303,1749197461500,-151.0,0.00030328,7]
[364679304,1749197461509,-157.246815,0.00030328,7]
[364679305,1749197461519,-480.0,0.00030328,7]
[364679306,1749197461529,-480.0,0.00030328,7]
[364679307,1749197461539,-480.0,0.00030328,7]
[364679308,1749197461549,-555.69,0.00030328,7]
[364679309,1749197461559,-480.0,0.00030328,7]
[364679310,1749197461569,-480.0,0.00030328,7]
[364679311,1749197461578,-620.89,0.00030328,7]
[364679312,1749197461588,-480.0,0.00030328,7]
[364679313,1749197461598,-686.94,0.00030328,7]
[364679314,1749197461608,-151.0,0.00030328,7]
[364679315,1749197461618,-555.19,0.00030328,7]
[364679316,1749197461627,-480.0,0.00030328,7]
[364679317,1749197461637,-151.0,0.00030328,7]
[364679318,1749197461647,-151.0,0.00030328,7]
[364679319,1749197461659,-480.0,0.00030328,7]
[364679320,1749197461670,-816.32,0.00030328,7]
[364679321,1749197461680,-480.0,0.00030328,7]
[364679322,1749197461690,-480.0,0.00030328,7]
[364679323,1749197461701,-579.166829,0.00030328,7]
[364679324,1749197461711,-746.12,0.00030328,7]
[364679325,1749197461720,-579.166829,0.00030328,7]
[364679326,1749197461731,-480.0,0.00030328,7]
[364679327,1749197461740,-553.55,0.00030328,7]
[364679328,1749197461751,-480.0,0.00030328,7]
[364679329,1749197461760,-480.0,0.00030328,7]
[364679330,1749197461770,-480.0,0.00030328,7]
[364679331,1749197461780,-435.17107617,0.00030328,7]
[364679332,1749197461790,-647.9,0.00030328,7]
[364679333,1749197461800,-480.0,0.00030328,7]
[364679334,1749197461809,-480.0,0.00030328,7]
[364679335,1749197461819,-480.0,0.00030328,7]
[364679336,1749197461829,-480.0,0.00030328,7]
[364679337,1749197461838,-339.78847472,0.00030328,7]
[364679338,1749197461848,-151.0,0.00030328,7]
[364679339,1749197461858,-151.0,0.00030328,7]
[364679340,1749197461868,-492.10096552,0.00030328,7]
[364679341,1749197461877,-480.0,0.00030328,7]
[364679342,1749197461887,-480.0,0.00030328,7]
[364679343,1749197461897,-480.0,0.00030328,7]
[364679344,1749197461907,-480.0,0.00030328,7]
[364679345,1749197461917,-151.250867,0.00030328,7]
[364679346,1749197461927,-884.4,0.00030328,7]
[364679347,1749197461936,-615.17,0.00030328,7]
[364679348,1749197461947,-480.0,0.00030328,7]
[364679349,1749197461957,-637.3,0.00030328,7]
[364679350,1749197461968,-480.0,0.00030328,7]
[364679351,1749197461978,-151.0,0.00030328,7]
[364679352,1749197461988,-480.0,0.00030328,7]
[364679353,1749197461998,-295.60632418,0.00030328,7]
[364679354,1749197462008,-487.20306759,0.00030328,7]
[364679355,1749197462019,-480.0,0.00030328,7]
[364679356,1749197462029,-480.0,0.00030328,7]
[364679357,1749197462039,-192.517797,0.00030328,7]
[364679358,1749197462049,-192.517797,0.00030328,7]
[364679359,1749197462059,-480.0,0.00030328,7]
[364679360,1749197462068,-490.12848269,0.00030328,7]
[364679361,1749197462078,-206.281646,0.00030328,7]
[364679362,1749197462088,-496.33,0.00030328,7]
[364679363,1749197462098,-480.0,0.00030328,7]
[364679364,1749197462108,-480.0,0.00030328,7]
[364679365,1749197462118,-207.93167265,0.00030328,7]
[364679366,1749197462128,-192.517797,0.00030328,7]
[364679367,1749197462138,-192.517797,0.00030328,7]
[364679368,1749197462149,-480.0,0.00030328,7]
[364679369,1749197462160,-482.98620982,0.00030328,7]
[364679370,1749197462170,-545.23912968,0.00030328,7]
[364679371,1749197462180,-151.0,0.00030328,7]
[364679372,1749197462189,-491.05088204,0.00030328,7]
[364679373,1749197462200,-480.0,0.00030328,7]
[364679374,1749197462210,-484.25389279,0.00030328,7]
[364679375,1749197462220,-480.0,0.00030328,7]
[364679376,1749197462230,-480.0,0.00030328,7]
[364679377,1749197462240,-250.0,0.00030328,7]
[364679378,1749197462250,-480.0,0.00030328,7]
[364679379,1749197462261,-506.43,0.00030328,7]
[364679380,1749197462271,-480.0,0.00030328,7]
[364679381,1749197462281,-480.0,0.00030328,7]
[364679382,1749197462291,-480.0,0.00030328,7]
[364679383,1749197462300,-480.0,0.00030328,7]
[364679384,1749197462310,-498.22459929,0.00030328,7]
[364679385,1749197462321,-480.0,0.00030328,7]
[364679386,1749197462331,-480.0,0.00030328,7]
[364679387,1749197462341,-480.0,0.00030328,7]
[364679388,1749197462351,-480.0,0.00030328,7]
[364679389,1749197462362,-480.0,0.00030328,7]
[364679390,1749197462372,-480.0,0.00030328,7]
[364679391,1749197462382,-480.0,0.00030328,7]
[364679392,1749197462392,-992.947527,0.00030328,7]
[364679393,1749197462402,-480.0,0.00030328,7]
[364679394,1749197462412,-480.0,0.00030328,7]
[364679395,1749197462422,-486.43758085,0.00030328,7]
[364679396,1749197462432,-480.0,0.00030328,7]
[364679397,1749197462653,-151.0,0.00030328,7]
[364679398,1749197462667,-151.0,0.00030328,7]
[364679399,1749197462677,-480.0,0.00030328,7]
[364679400,1749197462687,-992.947527,0.00030328,7]
[364679401,1749197462697,-882.83,0.00030328,7]
[364679402,1749197462707,-920.7,0.00030328,7]
[364679403,1749197462716,-483.99946189,0.00030328,7]
[364679404,1749197462726,-151.0,0.00030328,7]
[364679405,1749197462739,-151.0,0.00030328,7]
[364679406,1749197462750,-448.89377785,0.00030328,7]
[364679407,1749197462759,-490.52,0.00030328,7]
[364679408,1749197462770,-502.21832714,0.00030328,7]
[364679409,1749197462779,-480.0,0.00030328,7]
[364679410,1749197462788,-475.62597457,0.00030328,7]
[364679411,1749197462798,-652.94,0.00030328,7]
[364679412,1749197462808,-480.0,0.00030328,7]
[364679413,1749197462817,-443.62402992,0.00030328,7]
[364679414,1749197462827,-480.0,0.00030328,7]
[364679415,1749197462836,-480.0,0.00030328,7]
[364679416,1749197462846,-816.26,0.00030328,7]
[364679417,1749197462855,-480.0,0.00030328,7]
[364679418,1749197462865,-480.0,0.00030328,7]
[364679419,1749197462875,-480.0,0.00030328,7]
[364679420,1749197462885,-246.601412,0.00030328,7]
[364679421,1749197462895,-246.601412,0.00030328,7]
[364679422,1749197462905,-480.0,0.00030328,7]
[364679423,1749197462915,-299.223605,0.00030328,7]
[364679424,1749197462925,-480.0,0.00030328,7]
[364679425,1749197462935,-456.48427398,0.00030328,7]
[364679426,1749197462945,-480.0,0.00030328,7]
[364679427,1749197462955,-808.75,0.00030328,7]
[364679428,1749197462964,-246.601412,0.00030328,7]
[364679429,1749197462975,-246.601412,0.00030328,7]
[364679430,1749197462984,-480.0,0.00030328,7]
[364679431,1749197462995,-1490.588028,0.00030328,7]
[364679432,1749197463004,-491.99101096,0.00030328,7]
[364679433,1749197463014,-303.27141357,0.00030328,7]
[364679434,1749197463024,-480.0,0.00030328,7]
[364679435,1749197463034,-480.0,0.00030328,7]
[364679436,1749197463044,-1490.588028,0.00030328,7]
[364679437,1749197463055,-480.0,0.00030328,7]
[364679438,1749197463064,-151.0,0.00030328,7]
[364679439,1749197463075,-889.93,0.00030328,7]
[364679440,1749197463085,-620.56550188,0.00030328,7]
[364679441,1749197463095,-480.0,0.00030328,7]
[364679442,1749197463106,-151.0,0.00030328,7]
[364679443,1749197463116,-480.0,0.00030328,7]
[364679444,1749197463126,-480.0,0.00030328,7]
[364679445,1749197463136,-1492.07,0.00030328,7]
[364679446,1749197463146,-570.19,0.00030328,7]
[364679447,1749197463157,-480.0,0.00030328,7]
[364679448,1749197463167,-493.12451523,0.00030328,7]
[364679449,1749197463177,-259.564689,0.00030328,7]
[364679450,1749197463187,-480.0,0.00030328,7]
[364679451,1749197463199,-259.564689,0.00030328,7]
[364679452,1749197463210,-348.99824157,0.00030328,7]
[364679453,1749197463220,-480.0,0.00030328,7]
[364679454,1749197463230,-480.0,0.00030328,7]
[364679455,1749197463240,-883.22,0.00030328,7]
[364679456,1749197463250,-480.0,0.00030328,7]
[364679457,1749197463260,-480.0,0.00030328,7]
[364679458,1749197463270,-480.0,0.00030328,7]
[364679459,1749197463280,-259.564689,0.00030328,7]
[364679460,1749197463292,-151.0,0.00030328,7]
[364679461,1749197463302,-259.564689,0.00030328,7]
[364679462,1749197463312,-151.0,0.00030328,7]
[364679463,1749197463322,-480.0,0.00030328,7]
[364679464,1749197463332,-480.0,0.00030328,7]
[364679465,1749197463342,-480.0,0.00030328,7]
[364679466,1749197463351,-480.0,0.00030328,7]
[364679467,1749197463361,-157.588458,0.00030328,7]
[364679468,1749197463371,-480.0,0.00030328,7]
[364679469,1749197463381,-480.0,0.00030328,7]
[364679470,1749197463391,-480.0,0.00030328,7]
[364679471,1749197463401,-11561.66,0.00030328,7]
[364679472,1749197463411,-480.0,0.00030328,7]
[364679473,1749197463421,-480.0,0.00030328,7]
[364679474,1749197463431,-480.0,0.00030328,7]
[364679475,1749197463440,-1011.1,0.00030328,7]
[364679476,1749197463450,-480.0,0.00030328,7]
[364679477,1749197463460,-532.75,0.00030328,7]
[364679478,1749197463470,-492.39931651,0.00030328,7]
[364679479,1749197463480,-480.0,0.00030328,7]
[364679480,1749197463490,-480.0,0.00030328,7]
[364679481,1749197463501,-1222.51,0.00030328,7]
[364679482,1749197463510,-480.0,0.00030328,7]
[364679483,1749197463520,-1640.94,0.00030328,7]
[364679484,1749197463530,-480.0,0.00030328,7]
[364679485,1749197463539,-480.0,0.00030328,7]
[364679486,1749197463549,-480.0,0.00030328,7]
[364679487,1749197463559,-480.0,0.00030328,7]
[364679488,1749197463568,-480.0,0.00030328,7]
[364679489,1749197463578,-480.0,0.00030328,7]
[364679490,1749197463587,-480.0,0.00030328,7]
[364679491,1749197463597,-492.70743458,0.00030328,7]
[364679492,1749197463607,-833.22,0.00030328,7]
[364679493,1749197463617,-480.0,0.00030328,7]
[364679494,1749197463626,-480.0,0.00030328,7]
[364679495,1749197463636,-480.0,0.00030328,7]
[364679496,1749197463645,-480.0,0.00030328,7]
[364679497,1749197463655,-480.0,0.00030328,7]
[364679498,1749197463667,-480.0,0.00030328,7]
[364679499,1749197463677,-480.0,0.00030328,7]
[364679500,1749197463687,-480.0,0.00030328,7]
[364679501,1749197463698,-521.94,0.00030328,7]
[364679502,1749197463708,-480.0,0.00030328,7]
[364679503,1749197463719,-1265.84,0.00030328,7]
[364679504,1749197463729,-480.0,0.00030328,7]
[364679505,1749197463741,-499.8665414,0.00030328,7]
[364679506,1749197463752,-480.0,0.00030328,7]
[364679507,1749197463762,-476.511358,0.00030328,7]
[364679508,1749197463773,-485.54724894,0.00030328,7]
[364679509,1749197463783,-480.0,0.00030328,7]
[364679510,1749197463794,-480.0,0.00030328,7]
[364679511,1749197463804,-476.511358,0.00030328,7]
[364679512,1749197463815,-10430.47,0.00030328,7]
[364679513,1749197463826,-480.0,0.00030328,7]
[364679514,1749197463837,-480.0,0.00030328,7]
[364679515,1749197463847,-480.0,0.00030328,7]
[364679516,1749197463856,-480.0,0.00030328,7]
[364679517,1749197463867,-484.47396071,0.00030328,7]
[364679518,1749197463877,-496.22897132,0.00030328,7]
[364679519,1749197463887,-480.0,0.00030328,7]
[364679520,1749197463897,-801.07,0.00030328,7]
[364679521,1749197463907,-487.54450385,0.00030328,7]
[364679522,1749197463917,-480.0,0.00030328,7]
[364679523,1749197463928,-771.47,0.00030328,7]
[364679524,1749197463938,-973.74,0.00030328,7]
[364679525,1749197463952,-943.56,0.00030328,7]
[364679526,1749197463962,-480.0,0.00030328,7]
[364679527,1749197463972,-178.33895385,0.00030328,7]
[364679528,1749197463983,-480.0,0.00030328,7]
[364679529,1749197463994,-480.0,0.00030328,7]
[364679530,1749197464004,-480.0,0.00030328,7]
[364679531,1749197464014,-480.0,0.00030328,7]
[364679532,1749197464024,-480.0,0.00030328,7]
[364679533,1749197464035,-1859.07,0.00030328,7]
[364679534,1749197464046,-504.60064045,0.00030328,7]
[364679535,1749197464057,-480.0,0.00030328,7]
[364679536,1749197464067,-494.55999341,0.00030328,7]
[364679537,1749197464078,-480.0,0.00030328,7]
[364679538,1749197464089,-480.0,0.00030328,7]
[364679539,1749197464099,-151.0,0.00030328,7]
[364679540,1749197464110,-480.0,0.00030328,7]
[364679541,1749197464120,-1350.38,0.00030328,7]
[364679542,1749197464130,-495.45435143,0.00030328,7]
[364679543,1749197464140,-480.0,0.00030328,7]
[364679544,1749197464150,-151.0,0.00030328,7]
[364679545,1749197464160,-151.0,0.00030328,7]
[364679546,1749197464170,-300.0,0.00030328,7]
[364679547,1749197464180,-489.95522101,0.00030328,7]
[364679548,1749197464190,-558.33,0.00030328,7]
[364679549,1749197464201,-241.70510231,0.00030328,7]
[364679550,1749197464211,-151.0,0.00030328,7]
[364679551,1749197464222,-186.894339,0.00030328,7]
[364679552,1749197464232,-494.51200056,0.00030328,7]
[364679553,1749197464242,-480.0,0.00030328,7]
[364679554,1749197464252,-480.0,0.00030328,7]
[364679555,1749197464262,-480.0,0.00030328,7]
[364679556,1749197464272,-1533.58,0.00030328,7]
[364679557,1749197464283,-495.7120733,0.00030328,7]
[364679558,1749197464293,-486.7117137,0.00030328,7]
[364679559,1749197464304,-480.0,0.00030328,7]
[364679560,1749197464314,-759.98,0.00030328,7]
[364679561,1749197464324,-151.0,0.00030328,7]
[364679562,1749197464334,-480.0,0.00030328,7]
[364679563,1749197464344,-480.0,0.00030328,7]
[364679564,1749197464355,-583.17,0.00030328,7]
[364679565,1749197464365,-480.0,0.00030328,7]
[364679566,1749197464375,-480.0,0.00030328,7]
[364679567,1749197464385,-633.72,0.00030328,7]